Workbook

Sheet rettificadupcontabile
C2: COMUNE DI RANZANICO
C4: PROVINCIA DI BERGAMO
A8: Nota di Aggiornamento del Documento Unico di Programmazione
E10: =[5]PAREGGIO!C2 -> 2016 | F10: =E10+1 -> 2017 | G10: =F10+1 -> 2018
A15: Premessa
A16: In ottemperanza a quanto previsto dai nuovi principi contabili introdotti dal D.lgs 118/2011 e successive modifiche, è redatta la presente nota di aggiornamento dei dati contabili contenuti nel Documento Unico di Programmazione approvato dalla Giunta Comunale al fine di adeguare il contenuto alle risultanze contabili definitive del bilancio di previsione per il triennio.
A18: TRIBUTI E POLITICA TRIBUTARIA
A20: Un sistema altamente instabile
A21: Il sistema di finanziamento del bilancio risente molto sia dell'intervento legislativo in materia di trasferimenti dello stato a favore degli enti locali che, in misura sempre più grande, del carico tributario applicato sui beni immobili presenti nel territorio. Il federalismo fiscale riduce infatti il trasferimento di risorse centrali ed accentua la presenza di una politica tributaria decentrata. Il non indifferente impatto sociale e politico del regime di tassazione della proprietà immobiliare ha fatto sì che il quadro normativo di rifermento abbia subito nel corso degli anni profonde revisioni. L'ultima modifica a questo sistema si è avuta con l'introduzione dell'imposta unica comunale (IUC), i cui presupposti impositivi sono: il possesso di immobili; l’erogazione e fruizione di servizi comunali.
F23: Gettito | G23: Stima Gettito | H23: Stima Gettito | I23: Stima Gettito
C24: Tributo | F24: =E10-1 -> 2015 | G24: =F24+1 -> 2016 | H24: =G24+1 -> 2017 | I24: =H24+1 -> 2018
C25: I.M.U. | F25: =[5]ENTRATA!F13 -> 525000 | G25: =[5]ENTRATA!I13 -> 565000 | H25: =[5]ENTRATA!J13 -> 566000 | I25: =[5]ENTRATA!K13 -> 568000
C26: T.A.S.I. – Tassa sui servizi comunali | F26: =[5]ENTRATA!F15 -> 54000 | G26: =[5]ENTRATA!I15 -> 0 | H26: =[5]ENTRATA!J15 -> 0 | I26: =[5]ENTRATA!K15 -> 0
C27: T.A.R.I. – Tributo Comunale sui rifiuti | F27: =[5]ENTRATA!F21 -> 160500 | G27: =[5]ENTRATA!I21 -> 158500 | H27: =[5]ENTRATA!J21 -> 159000 | I27: =[5]ENTRATA!K21 -> 159500
C28: Addizionale Comunale IRPEF | F28: =[5]ENTRATA!F18 -> 67000 | G28: =[5]ENTRATA!I18 -> 62500 | H28: =[5]ENTRATA!J18 -> 63500 | I28: =[5]ENTRATA!K18 -> 63500
C29: Tributi minori e compartecipazioni | F29: =[5]ENTRATA!F17+[5]ENTRATA!F20+[5]ENTRATA!F23 -> 8500 | G29: =[5]ENTRATA!I17+[5]ENTRATA!I20+[5]ENTRATA!I23 -> 8600 | H29: =[5]ENTRATA!J17+[5]ENTRATA!J20+[5]ENTRATA!J23 -> 8600 | I29: =[5]ENTRATA!K17+[5]ENTRATA!K20+[5]ENTRATA!K23 -> 9100
C30: Recuperi evasione tributaria e fiscale | F30: =[5]ENTRATA!F16+[5]ENTRATA!F19+[5]ENTRATA!F14+[5]ENTRATA!F22 -> 10600 | G30: =[5]ENTRATA!I16+[5]ENTRATA!I19+[5]ENTRATA!I14+[5]ENTRATA!I22 -> 37300 | H30: =[5]ENTRATA!J16+[5]ENTRATA!J19+[5]ENTRATA!J14+[5]ENTRATA!J22 -> 20800 | I30: =[5]ENTRATA!K16+[5]ENTRATA!K19+[5]ENTRATA!K14+[5]ENTRATA!K22 -> 20800
C31: TOTALE | F31: =SUM(F25:F30) -> 825600 | G31: =SUM(G25:G30) -> 831900 | H31: 817900 | I31: 820900
B34: Descrizione missioni spesa corrente | F34: =#REF!-1 ->  | G34: =F34+1 ->  | H34: =G34+1 ->  | I34: =H34+1 -> 
B35: 01. Servizi istituzionali, generali e di gestione
B36: 02. Giustizia
B37: 03. Ordine pubblico e sicurezza
B38: 04. Istruzione e diritto allo studio
B39: 05. Tutela e valorizzazione dei beni e attività culturali
B40: 06. Politiche giovanili, sport e tempo libero
B41: 07. Turismo
B42: 08. Assetto del territorio ed edilizia abitativa
B43: 09. Sviluppo sostenibile e tutela del territorio e dell`ambiente
B44: 10. Trasporti e diritto alla mobilità
B45: 11. Soccorso civile
B46: 12. Diritti sociali, politiche sociali e famiglia
B47: 13. Tutela della salute
B48: 14. Sviluppo economico e competitività
B49: 15. Politiche per il lavoro e la formazione professionale
B50: 16. Agricoltura, politiche agroalimentari e pesca
B51: 17. Energia e diversificazione delle fonti energetiche
B52: 18. Relazioni con altre autonomie territoriali e locali
B53: 19. Relazioni internazionali
B54: 20. Fondi e accantonamenti
B55: 50. Debito pubblico
B56: 60. Anticipazioni finanziarie
B57: 99. Servizi per conto terzi
B58: TOTALE GENERALE | F58: =SUM(F35:F54) -> 0 | G58: =SUM(G35:G54) -> 0 | H58: =SUM(H35:H54) -> 0 | I58: =SUM(I35:I54) -> 0
A59: NECESSITÀ FINANZIARIE PER MISSIONI E PROGRAMMI
A61: Le risorse destinate a missioni e programmi
A62: Il finanziamento delle decisioni di spesa è il presupposto su cui poggia la successiva distribuzione delle risorse. Si può dare seguito ad un intervento che comporta un esborso solo in presenza della contropartita finanziaria. Questo significa che l'ente è autorizzato ad operare con specifici interventi di spesa solo se l'attività ha ottenuto la necessaria copertura finanziaria. Fermo restando il principio del pareggio, la decisione di impiegare le risorse nei diversi programmi in cui si articola la missione nasce da valutazioni di carattere politico o da esigenze di tipo tecnico. Parimenti riveste particolare importanza rispetto all’attività di programmazione politica e sulle scelte di bilancio il grado di rigidità del bilancio medesimo. Ossia più il bilancio è “ingessato” da spese fisse quali spesa di personale, spesa per interessi passivi e varie spese già contrattualizzate, minore sarà la possibilità di manovra dell’amministrazione, avendo a disposizione un’entità di risorse effettivamente disponibili molto ridotta. Ciascuna missione può richiedere interventi di parte corrente, rimborso prestiti o in c/capitale. Una missione può essere finanziata da risorse appartenenti allo stesso ambito (missione che si autofinanzia con risorse proprie) oppure, avendo un fabbisogno superiore alla propria disponibilità, deve essere finanziata dall'eccedenza di risorse reperite da altre missioni (la missione in avanzo finanzia quella in deficit). In generale la spesa corrente risulta finanziata dalla cosiddette entrate correnti costituite dalle entrate tributarie, dai trasferimenti correnti da altri enti (Stato – Regione – Provincia – Privati) e dalle entrate extra tributarie, ossia quelle generate dalla fornitura dei servizi comunali oppure dalla gestione del proprio patrimonio, dalle sanzioni C.d.S. etc.
B64: ENTRATE CORRENTI | F64: =F24 -> 2015 | G64: =F64+1 -> 2016 | H64: =G64+1 -> 2017 | I64: =H64+1 -> 2018
B65: Tributi (*) | F65: =[5]PAREGGIO!B7 -> 855600 | G65: =[5]PAREGGIO!C7 -> 831900 | H65: =[5]PAREGGIO!D7 -> 817900 | I65: =[5]PAREGGIO!E7 -> 820900
B66: Trasferimenti | F66: =[5]PAREGGIO!B8 -> 15200 | G66: =[5]PAREGGIO!C8 -> 19700 | H66: =[5]PAREGGIO!D8 -> 16200 | I66: =[5]PAREGGIO!E8 -> 16200
B67: Extra tributarie | F67: =[5]PAREGGIO!B9 -> 160450 | G67: =[5]PAREGGIO!C9 -> 149635 | H67: =[5]PAREGGIO!D9 -> 137895 | I67: =[5]PAREGGIO!E9 -> 137390
B68: Totale entrate correnti | F68: =SUM(F65:F67) -> 1031250 | G68: =SUM(G65:G67) -> 1001235 | H68: 971995 | I68: =SUM(I65:I67) -> 974490
B69: Fondo Pluriennale Vincolato | F69: =[5]PAREGGIO!B4 -> 22419.14 | G69: =[5]PAREGGIO!C4 -> 21426.62 | H69: 0 | I69: 0
B70: Avanzo di amministrazione applicato | F70: =[5]PAREGGIO!I14 -> 0 | G70: =[5]PAREGGIO!C3 -> 0 | H70: =[5]PAREGGIO!K14 -> 0 | I70: =[5]PAREGGIO!L14 -> 0
B71: Entrate di parte capitale in parte corrente | F71: =[5]PAREGGIO!I15 -> 0 | G71: =[5]PAREGGIO!J15 -> 0 | H71: =[5]PAREGGIO!K15 -> 0 | I71: =[5]PAREGGIO!L15 -> 0
B72: TOTALE | F72: =SUM(F68:F71) -> 1053669.14 | G72: =SUM(G68:G71) -> 1022661.62 | H72: =SUM(H68:H71) -> 971995 | I72: =SUM(I68:I71) -> 974490
B74: SPESE | F74: =F64 -> 2015 | G74: =F74+1 -> 2016 | H74: =G74+1 -> 2017 | I74: =H74+1 -> 2018
B75: Spese correnti | F75: =[5]PAREGGIO!I6 -> 1011169.14 | G75: =[5]PAREGGIO!J6 -> 986061.62 | H75: =[5]PAREGGIO!K6 -> 941995 | I75: =[5]PAREGGIO!L6 -> 943190
B76: Rimborso di prestiti | F76: =[5]PAREGGIO!I11 -> 42500 | G76: =[5]PAREGGIO!J11 -> 36600 | H76: =[5]PAREGGIO!K11 -> 30000 | I76: =[5]PAREGGIO!L11 -> 31300
B77: TOTALE | F77: =SUM(F75:F76) -> 1053669.14 | G77: =SUM(G75:G76) -> 1022661.62 | H77: 971995 | I77: =SUM(I75:I76) -> 974490
A79: Equilibri in termini di cassa
A80: Nonostante gli ormai cronici ritardi da parte del Ministero dell Interno nell'erogare quanto spettante annualmente in particolare ai Comuni, la buona liquidità dell'ente determinata principalmente dall'efficienza nella riscossione di imposte e tributi anche grazie alla puntualità dei contribuenti nell'adempiere alle scadenze prefissate, consente un buon margine operativo in termini di cassa, l'impegno per i prossimi esercizi sarà mantenere e migliorare la capacità di riscossione anche riguardo all'attività di accertamento e recupero dell'evasione tributaria.
A82: EQUILIBRI DI COMPETENZA NEL TRIENNIO
A84: Programmazione ed equilibri di bilancio
A85: Secondo l'attuale disciplina di bilancio, la giunta approva entro il 15 novembre di ogni anno lo schema di approvazione del bilancio finanziario relativo al triennio successivo, da sottoporre all’approvazione del consiglio. Nel caso in cui sopraggiungano variazioni del quadro normativo di riferimento, la giunta aggiorna sia lo schema di bilancio in corso di approvazione che il documento unico di programmazione (D.U.P.). Entro il successivo 31 dicembre il consiglio approva il bilancio che comprende le previsioni di competenza e cassa del primo esercizio e le previsioni di sola competenza degli esercizi successivi.
B87: ENTRATE | F87: =F64 -> 2015 | G87: =F87+1 -> 2016 | H87: =G87+1 -> 2017 | I87: =H87+1 -> 2018
B88: Tributi | F88: =[5]PAREGGIO!B7 -> 855600 | G88: =[5]PAREGGIO!C7 -> 831900 | H88: =[5]PAREGGIO!D7 -> 817900 | I88: =[5]PAREGGIO!E7 -> 820900
B89: Trasferimenti | F89: =[5]PAREGGIO!B8 -> 15200 | G89: =[5]PAREGGIO!C8 -> 19700 | H89: =[5]PAREGGIO!D8 -> 16200 | I89: =[5]PAREGGIO!E8 -> 16200
B90: Extra tributarie | F90: =[5]PAREGGIO!B9 -> 160450 | G90: =[5]PAREGGIO!C9 -> 149635 | H90: =[5]PAREGGIO!D9 -> 137895 | I90: =[5]PAREGGIO!E9 -> 137390
B91: Entrate C.to capitale | F91: =[5]PAREGGIO!B10 -> 607400 | G91: =[5]PAREGGIO!C10 -> 524000 | H91: =[5]PAREGGIO!D10 -> 175000 | I91: =[5]PAREGGIO!E10 -> 85000
B92: Riduzione attività finanziarie | F92: =[5]PAREGGIO!B11 -> 0 | G92: =[5]PAREGGIO!C11 -> 0 | H92: =[5]PAREGGIO!D11 -> 0 | I92: =[5]PAREGGIO!E11 -> 0
B93: Accensione prestiti | F93: =[5]PAREGGIO!B12 -> 0 | G93: =[5]PAREGGIO!C12 -> 0 | H93: =[5]PAREGGIO!D12 -> 0 | I93: =[5]PAREGGIO!E12 -> 0
B94: Anticipazioni | F94: =[5]PAREGGIO!B13 -> 0 | G94: =[5]PAREGGIO!C13 -> 0 | H94: =[5]PAREGGIO!D13 -> 0 | I94: =[5]PAREGGIO!E13 -> 0
B95: Entrate C.to terzi | F95: =[5]PAREGGIO!B14 -> 413630 | G95: =[5]PAREGGIO!C14 -> 410650 | H95: =[5]PAREGGIO!D14 -> 410750 | I95: =[5]PAREGGIO!E14 -> 410750
B96: Fondo Pluriennale Vincolato | F96: =[5]ENTRATA!F8+[5]ENTRATA!F7 -> 99239 | G96: =[5]ENTRATA!I8+[5]ENTRATA!I7 -> 395136.25 | H96: =[5]ENTRATA!J8+[5]ENTRATA!J7 -> 0 | I96: =[5]ENTRATA!K8+[5]ENTRATA!K7 -> 0
B97: Avanzo di amministrazione applicato | F97: =[5]PAREGGIO!B3 -> 0 | G97: =[5]PAREGGIO!C3 -> 0 | H97: =[5]PAREGGIO!D3 -> 0 | I97: =[5]PAREGGIO!E3 -> 0
B99: TOTALE | F99: =SUM(F88:F98) -> 2151519 | G99: =SUM(G88:G98) -> 2331021.25 | H99: =SUM(H88:H98) -> 1557745 | I99: =SUM(I88:I98) -> 1470240
B101: SPESE | F101: =F87 -> 2015 | G101: =G87 -> 2016 | H101: =H87 -> 2017 | I101: =I87 -> 2018
B102: Spese correnti | F102: =[5]PAREGGIO!B19 -> 1011169.14 | G102: =[5]PAREGGIO!C19 -> 986061.62 | H102: =[5]PAREGGIO!D19 -> 941995 | I102: =[5]PAREGGIO!E19 -> 943190
B103: Spese in conto capitale | F103: =[5]PAREGGIO!B20 -> 684219.86 | G103: =[5]PAREGGIO!C20 -> 897709.63 | H103: =[5]PAREGGIO!D20 -> 175000 | I103: =[5]PAREGGIO!E20 -> 85000
B104: Incremento attività finanziarie | F104: =[5]PAREGGIO!B21 -> 0 | G104: =[5]PAREGGIO!C21 -> 0 | H104: =[5]PAREGGIO!D21 -> 0 | I104: =[5]PAREGGIO!E21 -> 0
B105: Rimborso di prestiti | F105: =[5]PAREGGIO!B22 -> 42500 | G105: =[5]PAREGGIO!C22 -> 36600 | H105: =[5]PAREGGIO!D22 -> 30000 | I105: =[5]PAREGGIO!E22 -> 31300
B106: Chiusura anticipazione | F106: =[5]PAREGGIO!B23 -> 0 | G106: =[5]PAREGGIO!C23 -> 0 | H106: =[5]PAREGGIO!D23 -> 0 | I106: =[5]PAREGGIO!E23 -> 0
B107: Spese conto terzi | F107: =[5]PAREGGIO!B25 -> 413630 | G107: =[5]PAREGGIO!C25 -> 410650 | H107: =[5]PAREGGIO!D25 -> 410750 | I107: =[5]PAREGGIO!E25 -> 410750
B108: Disavanzo applicato
B109: TOTALE | F109: =SUM(F102:F108) -> 2151519 | G109: =SUM(G102:G108) -> 2331021.25 | H109: =SUM(H102:H108) -> 1557745 | I109: =SUM(I102:I108) -> 1470240
A111: PROGRAMMAZIONE ED EQUILIBRI FINANZIARI
A113: Il consiglio comunale, con l'approvazione politica di questo importante documento di programmazione, identifica gli obiettivi generali e destina le conseguenti risorse di bilancio. Il tutto, rispettando nell'intervallo di tempo richiesto dalla programmazione il pareggio tra risorse destinate (entrate) e relativi impieghi (uscite).
A114: L'Amministrazione può agire in quattro direzioni ben definite, la gestione corrente, gli interventi negli investimenti, l'utilizzo dei movimenti di fondi e la registrazione dei servizi per C/terzi, dove ognuno di questi ambiti può essere inteso come un'entità autonoma. Di norma, le scelte inerenti i programmi riguardano solo i primi due contesti (corrente e investimenti) perché i servizi C/terzi sono semplici partite di giro, mentre i movimenti di fondi interessano operazioni finanziarie di entrata e uscita che si compensano.
A116: FINANZIAMENTO DEL BILANCIO CORRENTE
A118: La spesa corrente e gli equilibri di bilancio
A119: L’argomento è già stato parzialmente trattato nel paragrafo introduttivo degli equilibri di bilancio. Due principi contabili fondamentali regolano la redazione del Bilancio di previsione di un ente locale. Il pareggio di bilancio, ora per gli enti in sperimentazione contabile anche da conseguire in termini di cassa, e l’equilibrio generale di bilancio. Il bilancio di compone di alcuni “macro aggregati” di spesa. La spesa corrente appunto, ossia la somma di tutte le spese necessarie al funzionamento della macchina comunale, quindi spese di personale, beni, servizi, manutenzioni, interessi, tasse etc. La spesa di investimento che tratteremo nel paragrafo successivo, le spese per rimborso mutui e le partite di giro e spese per conto terzi. Oltre al pareggio di bilancio è necessario garantire nel tempo in maniera costante e continuativa, come definito dalle leggi di contabilità, l’equilibrio di bilancio. Equilibrio che deve essere conseguito a livello di spesa corrente ed a livello di spesa di investimento in primis. Equilibrio che fa anche riferimento alle gestioni cosiddette “ a residui” ossia equilibrio nella gestione dei crediti e dei debiti arretrati che potrebbero potenzialmente nel tempo condizionare la struttura di bilancio sulla gestione di competenza.
A121: Le risorse per garantire il funzionamento
A122: Come ogni altra entità economica destinata ad erogare servizi, anche il comune sostiene dei costi, sia fissi che variabili, per far funzionare la struttura. Il fabbisogno richiesto dal funzionamento dell'apparato, come gli oneri per il personale (stipendi, contributi), l'acquisto di beni di consumo (cancelleria, ricambi), le prestazioni di servizi (luce, gas, telefono), unitamente al rimborso di prestiti, necessitano di adeguati finanziamenti. I mezzi destinati a tale scopo hanno una natura ordinaria, come i tributi, i contributi in C/gestione, le entrate extra tributarie. È più di rado, tendenzialmente, il ricorso a risorse di natura straordinaria.
A124: FINANZIAMENTO DEL BILANCIO INVESTIMENTI
A126: L'equilibrio del bilancio investimenti
A127: Come per la parte corrente, anche il budget richiesto dalle opere pubbliche presuppone il totale finanziamento della spesa. Ma a differenza della prima, la componente destinata agli investimenti è influenzata dalla disponibilità di risorse concesse dagli altri enti pubblici nella forma di contributi in C/capitale oppure da altre entrate proprie dell’ente aventi natura tale da finanziare opere, investimenti, acquisizioni, manutenzioni straordinarie etc.
A129: Le risorse destinate agli investimenti
A130: Oltre che a garantire il funzionamento della struttura, il comune può destinare le proprie entrate per acquisire migliorare le dotazioni infrastrutturali. In questo modo si viene ad assicurare un livello di mezzi strumentali tali da garantire l'erogazione di servizi di buona qualità. Le risorse di investimento possono essere gratuite, come i contributi in C/capitale, le alienazioni di beni, il risparmio di eccedenze correnti o l'avanzo di esercizi precedenti, o avere natura onerosa, come l'indebitamento. In questo caso, il rimborso del mutuo inciderà sul bilancio corrente caso, per tutto il periodo di ammortamento del prestito. Ed ancora possono essere disponibili risorse proprie che derivano da proventi di Oneri di Urbanizzazione, da monetizzazione di aree a servizi, etc.
A132: ENTRATE TRIBUTARIE (valutazione e andamento)
A134: Federalismo fiscale e solidarietà sociale
A135: L'impegno nell'erogare i servizi alla collettività richiede la disponibilità di risorse adeguate ai compiti che la società affida all'ente locale. Questi mezzi possono provenire dallo Stato oppure, in un'ottica ormai tesa al decentramento, direttamente dal territorio servito. Più ricchezza resta nel territorio che la produce maggiore è il ricorso al concetto di federalismo fiscale; più incisiva è la ridistribuzione di questa ricchezza verso zone meno prosperose, maggiore è il ricorso alla solidarietà sociale. Solidarietà sociale e costi sociali che la comunità si assume anche a livello locale sia per quanto attiene al welfare e sia per quanto attiene alla quota di costo dei servizi non coperta dagli utenti per mezzo delle tariffe. Negli ultimi anni, con il crescere dell’autonomia finanziaria, si è cercato di dare più forza all’autonomia impositiva. L'ente può orientarsi verso una politica di gestione dei tributi che garantisca un gettito adeguato al proprio fabbisogno ma senza ignorare i princìpi di equità contributiva e solidarietà sociale. Queste sono le regole di base che si scontrano con la dura realtà dei tagli alle risorse comunali, vuoi per le fasi di “Spending review” in capo agli enti locali, vuoi per le modifiche al sistema delle risorse nel passaggio da ICI ad IMU e da IMU all’avvento della TASI ed al sistema di compensazione tra enti che dalla nuova situazione, in applicazione dell’aliquota base, hanno ricevuto benefici.
A136: Uno sguardo ai tributi locali
A137: Il comune può intervenire con scelte di politica tributaria locale nel campo applicativo di talune imposte/ tributi, quali la IUC (che comprende IMU, TARI e TASI), l'addizionale sull'IRPEF e l'imposta sulla pubblicità e sulle pubbliche affissioni. Per quanto riguarda la concreta modalità di accertamento di queste entrate, i criteri che portano a giudicare positivamente il lavoro del comune sono essenzialmente due: la capacità di contrastare l’evasione e quella di riscuotere il credito con rapidità. Questi comportamenti sono un preciso indice di giustizia contributiva e, allo stesso tempo, denotano lo sforzo dell'Amministrazione teso ad aumentare la solidità del bilancio, condizione anch'essa irrinunciabile, purtroppo non sempre percepita nella giusta misura dai non addetti ai lavori. Restano di competenza tributi minori quali i diritti sulle pubbliche affissioni e la quota di diritti di escavazione ed ancora il recupero di gettito da ex ruoli TARSU. Riportando nell’ambito della competenza comunale la TARI (ex tassa raccolta rifiuti) si ritiene necessaria una revisione della banca dati e l’attivazione di iniziative sia tese al recupero di eventuali sacche di evasione sia di iniziative volte a migliorare le tempistiche di incasso e la percentuale di realizzazione dei medesimi. L’attività di accertamento sia sulle poste tributarie residue sia su quelle di nuova gestione riveste importanza primaria nell’abito della fiscalità locale e tale sarà l’orientamento operativo dell’ente anche nel prossimo futuro
C139: Entrate correnti di natura tributaria, contributiva e perequativa | G139: =G101 -> 2016 | H139: =G139+1 -> 2017 | I139: =H139+1 -> 2018
C140: Tipologia 101 - Imposte, tasse e proventi assimilati | G140: =[5]ENTRATA!I24 -> 831900 | H140: =[5]ENTRATA!J24 -> 817900 | I140: =[5]ENTRATA!K24 -> 820900
C141: Tipologia 104 - Compartecipazioni di tributi
C142: Tipologia 301 - Fondi perequativi da Amministrazioni Centrali | G142: =[5]ENTRATA!H28 -> 0 | H142: =[5]ENTRATA!I28 -> 0 | I142: =[5]ENTRATA!J28 -> 0
C143: Tipologia 302 - Fondi perequativi dalla Regione o Provincia autonoma
C144: Totale | G144: =SUM(G140:G143) -> 831900 | H144: 817900 | I144: 820900
A146: L'eventuale riforma delle leve impositive degli Enti Locali promessa recentemente dal governo potrebbe modificare radicalmente l'impostazione delle voci di entrata dei bilanci comunali, tuttavia l'ammontare complessivo delle risorse in entratà dovrà mantenere la stessa entità se non latro a garanzia del finanziamento delle spese per i servizi indispensabili svolti dall'ente.
A148: TRASFERIMENTI CORRENTI (valutazione e andamento)
A150: Nella direzione del federalismo fiscale
A151: Questo genere di entrate è e sarà via via una quota residuale rispetto al quadro generale delle entrate. E' opportuno evidenziare come, a seguito del federalismo fiscale, le finanze degli enti locali siano passate da una finanza derivata ad una finanza propria, lo Stato in particolare interviene con una perequazione delle risorse trasferite ai comuni tramite il Fondo di Solidarietà comunale che dovrebbe altresì garantire la sostanziale invarianza delle risorse derivanti dalla fiscalità locale e dall'influenza che i provvedimenti a livello centrale determinano relativamente al gettito delle imposte locali stesse.
C153: Entrate correnti di natura tributaria, contributiva e perequativa | G153: =$G$139 -> 2016 | H153: =G153+1 -> 2017 | I153: =H153+1 -> 2018
C154: Tipologia 101 - Trasferimenti correnti da Amministrazioni pubbliche | G154: =[5]ENTRATA!I41+[5]ENTRATA!I46 -> 19700 | H154: =[5]ENTRATA!J41+[5]ENTRATA!J46 -> 16200 | I154: =[5]ENTRATA!K41+[5]ENTRATA!K46 -> 16200
C155: Tipologia 102 - Trasferimenti correnti da Famiglie
C156: Tipologia 103 - Trasferimenti correnti da Imprese
C157: Tipologia 104 - Trasferimenti correnti da Istituzioni Sociali Private
C158: Tipologia 105 - Trasferimenti correnti dall'Unione Europea e dal Resto del Mondo
C159: Totale | G159: =SUM(G154:G158) -> 19700 | H159: 16200 | I159: =SUM(I154:I158) -> 16200
A162: Valutazione
A165: ENTRATE EXTRA-TRIBUTARIE (valutazione e andamento)
A167: Entrate proprie e imposizione tariffaria
A168: Questo genere di entrate è una significativa fonte di finanziamento del bilancio, reperita con mezzi propri e ottenuta con l'applicazione di tariffe a tutta una serie di prestazioni rese ai singoli cittadini. Si tratta di servizi a domanda individuale, istituzionali e produttivi. Le altre risorse che confluiscono in questo comparto sono i proventi dei beni in affitto, gli utili ed i dividendi delle partecipazioni e altre entrate minori. Il comune, nel momento in cui pianifica l'attività per l'anno successivo, sceglie la propria politica tariffaria e individua la percentuale di copertura del costo dei servizi a domanda individuale che sarà finanziata con tariffe e altre entrate specifiche. L'Amministrazione rende così noto alla collettività l'entità del costo che tutti saranno chiamati a coprire per rendere possibile l'erogazione di certe prestazioni ad un prezzo sociale. Il cittadino, però, non è obbligato ad utilizzare questo tipo di prestazioni ma se lo fa, deve pagare il corrispettivo richiesto. Questo genere di entrate è una significativa fonte di finanziamento del bilancio, reperita con mezzi propri e ottenuta con l'applicazione di tariffe a tutta una serie di prestazioni rese ai singoli cittadini. Si tratta di servizi a domanda individuale, istituzionali e produttivi.
A169: Le altre risorse che confluiscono in questo comparto sono i proventi dei beni in affitto, gli eventuali utili ed i dividendi delle partecipazioni, i proventi delle sanzioni C.d.S., i proventi dei canoni di occupazione suolo pubblico e pubblicità, i proventi dei diritti per costo pratica, i rimborsi di vario genere ed altre entrate minori.
A170: Il comune, nel momento in cui pianifica l'attività per l'anno successivo, sceglie la propria politica tariffaria e individua la percentuale di copertura del costo dei servizi a domanda individuale che sarà finanziata con tariffe e altre entrate specifiche. L'Amministrazione rende così noto alla collettività l'entità del costo che tutti saranno chiamati a coprire per rendere possibile l'erogazione di certe prestazioni ad un prezzo sociale. Il cittadino, però, non è obbligato ad utilizzare questo tipo di prestazioni ma se lo fa, deve pagare il corrispettivo richiesto
C172: Entrate extratributarie | D172: Rendiconto | E172: Rendiconto | F172: Stanziamento | G172: =$G$139 -> 2016 | H172: =G172+1 -> 2017 | I172: =H172+1 -> 2018
C173: Tipologia 100 - Vendita di beni e servizi e proventi derivanti dalla gestione dei beni | G173: =[5]ENTRATA!I67+[5]ENTRATA!I77 -> 112825 | H173: =[5]ENTRATA!J67+[5]ENTRATA!J77 -> 111595 | I173: =[5]ENTRATA!K67+[5]ENTRATA!K77 -> 111590
C174: Tipologia 200 - Proventi derivanti dall'attività di controllo e repressionedelle irregolarità e degl | D174: 36328.02 | E174: 2002.28 | F174: 1000 | G174: =[5]ENTRATA!I83 -> 20000 | H174: =[5]ENTRATA!J83 -> 20000 | I174: =[5]ENTRATA!K83 -> 20000
C175: Tipologia 300 - Interessi attivi | D175: 225.7 | E175: 0 | F175: 500 | G175: =[5]ENTRATA!I89 -> 500 | H175: =[5]ENTRATA!J89 -> 500 | I175: =[5]ENTRATA!K89 -> 500
C176: Tipologia 400 - Altre entrate da redditi da capitale | D176: 0 | E176: 0 | F176: 0
C177: Tipologia 500 - Rimborsi e altre entrate correnti | D177: 22321.21 | E177: 16041.1 | F177: 41540 | G177: =[5]ENTRATA!I95+[5]ENTRATA!I105+[5]ENTRATA!I110 -> 16310 | H177: =[5]ENTRATA!J95+[5]ENTRATA!J105+[5]ENTRATA!J110 -> 5800 | I177: =[5]ENTRATA!K95+[5]ENTRATA!K105+[5]ENTRATA!K110 -> 5300
C178: Totale | G178: =SUM(G173:G177) -> 149635 | H178: 137895 | I178: =SUM(I173:I177) -> 137390
A179: Valutazione
A182: ENTRATE IN CONTO CAPITALE (valutazione e andamento)
A184: Investire senza aumentare l'indebitamento
A185: I trasferimenti in C/capitale sono risorse a titolo gratuito concesse al comune da entità pubbliche, come lo Stato, la regione o la provincia, oppure erogati da soggetti privati. Queste entrate, spesso rilevanti, possono essere destinate alla costruzione di nuove opere pubbliche o alla manutenzione straordinaria del patrimonio. Rientrano in questa categoria anche le alienazioni dei beni comunali, un'operazione il cui introito dev'essere sempre reinvestito in spese d'investimento, conservando pertanto l'originaria destinazione oppure ad estinzione anticipata del debito finanziario residuo con analoga finalità di mantenere inalterato il patrimonio dell’ente, agendo dal lato dei “debiti” anziché dei cespiti. Quello che è nato come un investimento, infatti, può essere alienato, ma il corrispondente ricavo di vendita non può diventare un mezzo di finanziamento del bilancio di parte corrente, salvo l'esistenza di eccezioni espressamente previste dalla legge.
C187: Entrate in conto capitale | G187: =$G$139 -> 2016 | H187: =G187+1 -> 2017 | I187: =H187+1 -> 2018
C188: Tipologia 100 - Tributi in conto capitale
C189: Tipologia 200 - Contributi agli investimenti | G189: =[5]ENTRATA!I124 -> 439000 | H189: =[5]ENTRATA!J124 -> 90000 | I189: =[5]ENTRATA!K124 -> 0
C190: Tipologia 300 - Altri trasferimenti in conto capitale
C191: Tipologia 400 - Entrate da alienazione di beni materiali e immateriali
C192: Tipologia 500 - Altre entrate in conto capitale | G192: =[5]ENTRATA!I131+[5]ENTRATA!I135 -> 85000 | H192: =[5]ENTRATA!J131+[5]ENTRATA!J135 -> 85000 | I192: =[5]ENTRATA!K131+[5]ENTRATA!K135 -> 85000
C193: Totale | G193: =SUM(G188:G192) -> 524000 | H193: 175000 | I193: =SUM(I188:I192) -> 85000
A194: Valutazione
A197: RIDUZIONE DI ATTIVITÀ FINANZIARIE
A199: Riduzione di attività finanziarie
A200: Rientrano nell'insieme le alienazioni di attività finanziarie, le riscossioni di crediti a breve, medio e lungo termine, oltre la voce residuale delle altre entrate per riduzioni di attività finanziarie. Si tratta, in prevalenza, di operazioni spesso connesse ai movimenti di fondi e pertanto non legate ad effettive scelte di programmazione politica o amministrativa. I movimenti di fondi, infatti, consistono nella chiusura di una posizione debitoria e creditoria, di solito a saldo zero, a meno che l'estinzione non produca un guadagno (plusvalenza) o una perdita (minusvalenza) di valore. Una voce interessante di questo aggregato sono le alienazioni di attività finanziarie, dato che in esso confluiscono le alienazioni di partecipazioni, di fondi comuni d'investimento e la dismissione di obbligazioni. Non sono programmate nel triennio queste tipologie di interventi
C202: Riduzione di attività finanziarie | G202: =$G$139 -> 2016 | H202: =G202+1 -> 2017 | I202: =H202+1 -> 2018
C203: Tipologia 100 - Alienazione di attività finanziarie
C204: Tipologia 200 - Riscossione crediti di breve termine | D204: Tipologia 200 - Riscossione crediti di breve termine | E204: Tipologia 200 - Riscossione crediti di breve termine | F204: Tipologia 200 - Riscossione crediti di breve termine
C205: Tipologia 300 - Riscossione crediti di medio-lungo termine | D205: Tipologia 300 - Riscossione crediti di medio-lungo termine | E205: Tipologia 300 - Riscossione crediti di medio-lungo termine | F205: Tipologia 300 - Riscossione crediti di medio-lungo termine
C206: Tipologia 400 - Altre entrate per riduzione di attività finanziarie | D206: Tipologia 400 - Altre entrate per riduzione di attività finanziarie | E206: Tipologia 400 - Altre entrate per riduzione di attività finanziarie | F206: Tipologia 400 - Altre entrate per riduzione di attività finanziarie
C207: Totale | G207: =SUM(G203:G206) -> 0 | H207: =SUM(H203:H206) -> 0 | I207: 0
A208: Valutazione
A209: Non si prevede alcuna attività finanziaria
A211: ACCENSIONE PRESTITI NETTI (valutazione e andamento)
A213: Il ricorso al credito oneroso
A214: Le risorse proprie del comune e quelle ottenute gratuitamente da terzi, come i contributi in C/capitale, possono non essere sufficienti a coprire il fabbisogno richiesto dagli investimenti. In tale circostanza, il ricorso al mercato finanziario può essere un'alternativa utile ma sicuramente onerosa. La contrazione dei mutui onerosi comporta, a partire dall'inizio dell'ammortamento e fino alla data di estinzione del prestito, il pagamento delle quote annuali per interesse e per il rimborso progressivo del capitale. Questi importi costituiscono, per il bilancio del comune, delle spese di natura corrente la cui entità va finanziata con altrettante risorse ordinarie. L'equilibrio del bilancio di parte corrente, infatti, si fonda sull'accostamento tra i primi tre titoli delle entrate (tributi, trasferimenti correnti, extra tributarie) ed i titoli primo e terzo delle uscite (spese correnti e rimborso mutui). Il peso del debito, inoltre, influisce sulla rigidità del bilancio comunale.
C216: Accensione Prestiti | G216: =$G$139 -> 2016 | H216: =G216+1 -> 2017 | I216: =H216+1 -> 2018
C217: Tipologia 100 - Emissione di titoli obbligazionari
C218: Tipologia 200 - Accensione prestiti a breve termine
C219: Tipologia 300 - Accensione mutui e altri finanziamenti a medio lungo termine
C220: Tipologia 400 - Altre forme di indebitamento
C221: Totale | G221: =SUM(G217:G220) -> 0 | H221: =SUM(H217:H220) -> 0 | I221: 0
A222: Valutazione
A223: Non viene prevista alcuna accensione di mutui o prestiti
A226: FABBISOGNO PER SINGOLA MISSIONE
A228: Il budget di spesa dei programmi
A229: L'Amministrazione pianifica l'attività e formalizza le scelte prese nel documento di programmazione approvato dal consiglio. Con questa delibera, votata a maggioranza politica, sono identificati sia gli obiettivi futuri che le risorse necessarie al loro effettivo conseguimento. Il bilancio è pertanto suddiviso in vari programmi a cui corrispondono i budget di spesa stanziati per rendere possibile la loro concreta realizzazione. Obiettivi e risorse diventano così i riferimenti ed i vincoli che delineano l'attività di gestione dell'azienda comunale.
A230: Di seguito l'analisi, per ciascuna missione e programma del bilancio, degli obiettivi che l'Amministrazione intende realizzare negli esercizi considerati nel bilancio di previsione pluriennale, e l'indicazione in sintesi delle risorse necessarie alla realizzazione degli stessi oltre che degli impegni già assunti e le relative forme di finanziamento.
B232: Descrizione missioni spesa corrente | F232: =G216-1 -> 2015 | G232: =F232+1 -> 2016 | H232: =G232+1 -> 2017 | I232: =H232+1 -> 2018
B233: 01. Servizi istituzionali, generali e di gestione | F233: =[5]SPESA!G650 -> 938534.17 | G233: =[5]SPESA!J650 -> 1032370.73 | H233: =[5]SPESA!K650 -> 468970 | I233: =[5]SPESA!L650 -> 375240
B234: 02. Giustizia | F234: =[5]SPESA!G651 -> 0 | G234: =[5]SPESA!J651 -> 0 | H234: =[5]SPESA!K651 -> 0 | I234: =[5]SPESA!L651 -> 0
B235: 03. Ordine pubblico e sicurezza | F235: =[5]SPESA!G652 -> 48962.81 | G235: =[5]SPESA!J652 -> 201071.89 | H235: =[5]SPESA!K652 -> 46400 | I235: =[5]SPESA!L652 -> 46600
B236: 04. Istruzione e diritto allo studio | F236: =[5]SPESA!G653 -> 120350 | G236: =[5]SPESA!J653 -> 123200 | H236: =[5]SPESA!K653 -> 121300 | I236: =[5]SPESA!L653 -> 121800
B237: 05. Tutela e valorizzazione dei beni e attività culturali | F237: =[5]SPESA!G654 -> 19050 | G237: =[5]SPESA!J654 -> 17550 | H237: =[5]SPESA!K654 -> 17550 | I237: =[5]SPESA!L654 -> 18050
B238: 06. Politiche giovanili, sport e tempo libero | F238: =[5]SPESA!G655 -> 30390 | G238: =[5]SPESA!J655 -> 49648 | H238: =[5]SPESA!K655 -> 28000 | I238: =[5]SPESA!L655 -> 28500
B239: 07. Turismo | F239: =[5]SPESA!G656 -> 31380 | G239: =[5]SPESA!J656 -> 2300 | H239: =[5]SPESA!K656 -> 1900 | I239: =[5]SPESA!L656 -> 1900
B240: 08. Assetto del territorio ed edilizia abitativa | F240: =[5]SPESA!G657 -> 3500 | G240: =[5]SPESA!J657 -> 0 | H240: =[5]SPESA!K657 -> 0 | I240: =[5]SPESA!L657 -> 0
B241: 09. Sviluppo sostenibile e tutela del territorio e dell`ambiente | F241: =[5]SPESA!G658 -> 149183.26 | G241: =[5]SPESA!J658 -> 147045.63 | H241: =[5]SPESA!K658 -> 140650 | I241: =[5]SPESA!L658 -> 142150
B242: 10. Trasporti e diritto alla mobilità | F242: =[5]SPESA!G659 -> 238528.76 | G242: =[5]SPESA!J659 -> 186050 | H242: =[5]SPESA!K659 -> 183400 | I242: =[5]SPESA!L659 -> 184000
B243: 11. Soccorso civile | F243: =[5]SPESA!G660 -> 3700 | G243: =[5]SPESA!J660 -> 1000 | H243: =[5]SPESA!K660 -> 1500 | I243: =[5]SPESA!L660 -> 1700
B244: 12. Diritti sociali, politiche sociali e famiglia | F244: =[5]SPESA!G661 -> 71900 | G244: =[5]SPESA!J661 -> 78700 | H244: =[5]SPESA!K661 -> 59800 | I244: =[5]SPESA!L661 -> 61900
B245: 13. Tutela della salute | F245: =[5]SPESA!G662 -> 0 | G245: =[5]SPESA!J662 -> 0 | H245: =[5]SPESA!K662 -> 0 | I245: =[5]SPESA!L662 -> 0
B246: 14. Sviluppo economico e competitività | F246: =[5]SPESA!G663 -> 0 | G246: =[5]SPESA!J663 -> 0 | H246: =[5]SPESA!K663 -> 0 | I246: =[5]SPESA!L663 -> 0
B247: 15. Politiche per il lavoro e la formazione professionale | F247: =[5]SPESA!G664 -> 0 | G247: =[5]SPESA!J664 -> 0 | H247: =[5]SPESA!K664 -> 0 | I247: =[5]SPESA!L664 -> 0
B248: 16. Agricoltura, politiche agroalimentari e pesca | F248: =[5]SPESA!G665 -> 0 | G248: =[5]SPESA!J665 -> 0 | H248: =[5]SPESA!K665 -> 0 | I248: =[5]SPESA!L665 -> 0
B249: 17. Energia e diversificazione delle fonti energetiche | F249: =[5]SPESA!G666 -> 0 | G249: =[5]SPESA!J666 -> 0 | H249: =[5]SPESA!K666 -> 0 | I249: =[5]SPESA!L666 -> 0
B250: 18. Relazioni con altre autonomie territoriali e locali | F250: =[5]SPESA!G667 -> 0 | G250: =[5]SPESA!J667 -> 0 | H250: =[5]SPESA!K667 -> 0 | I250: =[5]SPESA!L667 -> 0
B251: 19. Relazioni internazionali | F251: =[5]SPESA!G668 -> 0 | G251: =[5]SPESA!J668 -> 0 | H251: =[5]SPESA!K668 -> 0 | I251: =[5]SPESA!L668 -> 0
B252: 20. Fondi e accantonamenti | F252: =[5]SPESA!G669 -> 12400 | G252: =[5]SPESA!J669 -> 19375 | H252: =[5]SPESA!K669 -> 23675 | I252: =[5]SPESA!L669 -> 24075
B253: 50. Debito pubblico | F253: =[5]SPESA!G670+[5]SPESA!G436 -> 70010 | G253: =[5]SPESA!J670+[5]SPESA!J436 -> 62060 | H253: =[5]SPESA!K670+[5]SPESA!K436 -> 53850 | I253: =[5]SPESA!L670+[5]SPESA!L436 -> 53575
B254: 60. Anticipazioni finanziarie | F254: =[5]SPESA!G671 -> 0 | G254: =[5]SPESA!J671 -> 0 | H254: =[5]SPESA!K671 -> 0 | I254: =[5]SPESA!L671 -> 0
B255: 99. Servizi per conto terzi | F255: =[5]SPESA!G672 -> 413630 | G255: =[5]SPESA!J672 -> 410650 | H255: =[5]SPESA!K672 -> 410750 | I255: =[5]SPESA!L672 -> 410750
B256: TOTALE GENERALE | F256: =SUM(F233:F255) -> 2151519 | G256: =SUM(G233:G255) -> 2331021.25 | H256: 1557745 | I256: 1470240 | N256: =F256-[5]PAREGGIO!B26 -> 0
A259: MISSIONE 01 – Servizi istituzionali, generali e di gestione e relativi programmi
A261: Definizione
A262: Rientrano nelle finalità di questa missione secondo il glossario previsto dall’ARCONET, articolata per altro in programmi, l’amministrazione e funzionamento dei servizi generali, dei servizi statistici e informativi, delle attività per lo sviluppo dell'ente in un’ottica di governance e partenariato e per la comunicazione istituzionale. Amministrazione, funzionamento e supporto agli organi esecutivi e legislativi. Amministrazione e funzionamento dei servizi di pianificazione economica in generale e delle attività per gli affari e i servizi finanziari e fiscali. Sviluppo e gestione delle politiche per il personale. Interventi che rientrano nell'ambito della politica regionale unitaria di carattere generale e di assistenza tecnica.
A264: Programmi
... 217 more rows
